Workbook

Sheet 4
A1: Załącznik Nr 6 do uchwały Nr IX/75/11 Rady Miejskiej Radzynia Chełmińskiego z dnia 30 września 2011r.
A5: Zmiana planu wydatków na programy i projekty realizowane ze środków pochodzących z budżetu Unii Europejskiej na rok 2011
A8: Lp. | B8: Projekt | C8: Kategoria interwencji funduszy strukturalnych | D8: Klasyfikacja (dział, rozdział, paragraf) | E8: Wydatki w okresie realizacji Projektu (całkowita wartość Projektu) (6+7) | F8: w tym: | H8: Planowane wydatki
F9: Środki z budżetu krajowego | G9: Środki z budżetu UE | H9: 2011 r.
H10: Wydatki razem (9+13) | I10: z tego:
I11: Środki z budżetu krajowego | M11: Środki z budżetu UE
I12: Wydatki razem (10+11+12) | J12: z tego, źródła finansowania: | M12: Wydatki razem (14+15+16+17) | N12: z tego, źródła finansowania:
J13: pożyczki i kredyty | K13: obligacje | L13: pozostałe | N13: pożyczki na prefinansowanie z budżetu państwa | O13: pożyczki i kredyty | P13: obligacje | Q13: pozostałe
A14: 1 | B14: 2 | C14: 3 | D14: 4 | E14: 5 | F14: 6 | G14: 7 | H14: 8 | I14: 9 | J14: 10 | K14: 11 | L14: 12 | M14: 13 | N14: 14 | O14: 15 | P14: 16 | Q14: 17
A16: 1 | B16: Wydatki inwestycyjne razem: | C16: x | E16: =SUM(E22) -> 535000 | F16: 210000 | G16: 325000 | H16: 535000 | I16: 210000 | J16: 210000 | K16: 0 | L16: 0 | M16: 325000 | N16: 325000 | O16: 0 | P16: 0 | Q16: 0
A17: 1.1 | B17: Program: | C17: Program Rozwoju Obszarów Wiejskich na lata 2007-2013
B18: Priorytet: | C18: Oś. 3 Jakość życia na obszarach wiejskich i różnicowanie gospodarki wiejskiej
B19: Działanie: | C19: Działanie 321 Podstawowe usługi dla gospodarki i ludności wiejskiej
B20: Nazwa projektu: | C20: Budowa 60 szt. przydomowych oczyszczalni ścieków na terenie Gminy Radzyń Chełmiński
B22: Razem wydatki: | C22: Europejski Fundusz Rolny na rzecz Rozwoju Obszarów Wiejskich (EFRROW) | E22: =SUM(E23:E24) -> 535000 | F22: =SUM(F23:F24) -> 210000 | G22: 325000 | H22: 535000 | I22: 210000 | J22: 210000 | K22: 0 | L22: 0 | M22: 325000 | N22: 325000 | O22: 0 | P22: 0 | Q22: 0
B23: z tego: 2011 r. | D23: 010/01010/6058 | E23: 325000 | F23: - | G23: 325000 | H23: 325000 | I23: - | J23: - | K23: - | L23: - | M23: 325000 | N23: 325000 | O23: - | P23: - | Q23: -
D24: 010/01010/6059 | E24: 210000 | F24: 210000 | G24: - | H24: 210000 | I24: 210000 | J24: 210000 | K24: - | L24: - | M24: - | N24: - | O24: - | P24: - | Q24: -
A25: 2 | B25: Wydatki inwestycyjne razem: | C25: x | E25: =SUM(E31) -> 500000 | F25: 195000 | G25: 305000 | H25: 500000 | I25: 195000 | J25: 195000 | K25: 0 | L25: 0 | M25: 305000 | N25: 305000 | O25: 0 | P25: 0 | Q25: 0
A26: 2.1 | B26: Program: | C26: Program Rozwoju Obszarów Wiejskich na lata 2007-2013
B27: Priorytet: | C27: Oś. 3 Jakość życia na obszarach wiejskich i różnicowanie gospodarki wiejskiej
B28: Działanie: | C28: Działanie 321 Podstawowe usługi dla gospodarki i ludności wiejskiej
B29: Nazwa projektu: | C29: Budowa przydomowych oczyszczalni ścieków na terenie gminy Radzyń Chełmiński oraz wymiana i rozbudowa sieci wodociągowej na terenie miasta i gminy Radzyń Chełmiński - Zadanie II (I etap)
B31: Razem wydatki: | C31: Europejski Fundusz Rolny na rzecz Rozwoju Obszarów Wiejskich (EFRROW) | E31: =SUM(E32:E33) -> 500000 | F31: =SUM(F32:F33) -> 195000 | G31: 305000 | H31: 500000 | I31: 195000 | J31: 195000 | K31: 0 | L31: 0 | M31: 305000 | N31: 305000 | O31: 0 | P31: 0 | Q31: 0
B32: z tego: 2011 r. | D32: 010/01010/6058 | E32: 305000 | F32: - | G32: 305000 | H32: 305000 | I32: - | J32: - | K32: - | L32: - | M32: 305000 | N32: 305000 | O32: - | P32: - | Q32: -
D33: 010/01010/6059 | E33: 195000 | F33: 195000 | G33: - | H33: 195000 | I33: 195000 | J33: 195000 | K33: - | L33: - | M33: - | N33: - | O33: - | P33: - | Q33: -
Q38: str. 2
A43: 1 | B43: 2 | C43: 3 | D43: 4 | E43: 5 | F43: 6 | G43: 7 | H43: 8 | I43: 9 | J43: 10 | K43: 11 | L43: 12 | M43: 13 | N43: 14 | O43: 15 | P43: 16 | Q43: 17
A44: 3. | B44: Wydatki inwestycyjne razem: | C44: x | E44: =SUM(E50) -> 110000 | F44: 40000 | G44: 70000 | H44: 100000 | I44: 40000 | J44: 40000 | K44: 0 | L44: 0 | M44: 70000 | N44: 0 | O44: 0 | P44: 0 | Q44: 70000
A45: 3.1 | B45: Program: | C45: Program Rozwoju Obszarów Wiejskich na lata 2007-2013
B46: Priorytet: | C46: Oś. 4 Leader
B47: Działanie: | C47: Działanie 4.1/413 Wdrażanie lokalnych strategii rozwoju
B48: Nazwa projektu: | C48: Opracowanie dokumentacji technicznej oraz wykonanie terenów rekreacyjnych przy ul. Sady
B50: Razem wydatki: | C50: Europejski Fundusz Rolny na rzecz Rozwoju Obszarów Wiejskich (EFRROW) | E50: =SUM(E51:E51) -> 110000 | F50: 40000 | G50: 70000 | H50: 100000 | I50: 40000 | J50: 40000 | K50: - | L50: - | M50: 70000 | N50: - | O50: - | P50: - | Q50: 70000
B51: z tego: 2011 r. | D51: 926/92695/605 | E51: 110000 | F51: 40000 | G51: 70000 | H51: 100000 | I51: 40000 | J51: 40000 | K51: - | L51: - | M51: 70000 | N51: - | O51: - | P51: - | Q51: 70000
A52: 4. | B52: Wydatki bieżące razem: | C52: x | E52: =SUM(E57) -> 695268 | F52: =SUM(F57) -> 104291 | G52: 590977 | H52: 695268 | I52: 104291 | J52: 0 | K52: 0 | L52: 104291 | M52: 590977 | N52: 0 | O52: 0 | P52: 0 | Q52: 590977
A53: 4.1 | B53: Program: | C53: Program Operacyjny Kapitał Ludzki
B54: Priorytet: | C54: Priorytet VII Promocja integracji społecznej
B55: Działanie: | C55: Działanie 7.2. Przeciwdziałanie wykluczeniu i wzmocnienie sektora ekonomii społecznej
B56: Nazwa projektu: | C56: Centrum Integracji Społecznej w Szumiłowie
B57: Razem wydatki: | C57: Europejski Fundusz Społeczny | E57: =SUM(E58,E59) -> 695268 | F57: =SUM(F58,F59) -> 104291 | G57: =SUM(G58,G59) -> 590977 | H57: =SUM(H58,H59) -> 695268 | I57: =SUM(I58,I59) -> 104291 | J57: - | K57: - | L57: =SUM(L58,L59) -> 104291 | M57: =SUM(M58,M59) -> 590977 | N57: - | O57: - | P57: - | Q57: =SUM(Q58,Q59) -> 590977
B58: z tego: 2011 r. | D58: 852/85232/2007 | E58: 590977 | F58: - | G58: 590977 | H58: 590977 | I58: - | J58: - | K58: - | L58: - | M58: 590977 | N58: - | O58: - | P58: - | Q58: 590977
D59: 852/85232/2009 | E59: 104291 | F59: 104291 | G59: - | H59: 104291 | I59: 104291 | J59: - | K59: - | L59: 104291 | M59: - | N59: - | O59: - | P59: - | Q59: -
A60: 4. | B60: Wydatki bieżące razem: | C60: x | E60: =SUM(E65) -> 183393 | F60: =SUM(F65) -> 27509 | G60: 155884 | H60: 183393 | I60: 27509 | J60: 0 | K60: 0 | L60: 27542 | M60: 155884 | N60: 0 | O60: 0 | P60: 0 | Q60: 155884
A61: 4.1 | B61: Program: | C61: Program Operacyjny Kapitał Ludzki
B62: Priorytet: | C62: Priorytet VII Promocja integracji społecznej
B63: Działanie: | C63: Działanie 7.1. Rozwój i upowszechnianie aktywnej integracji przez ośrodki pomocy społecznej
B64: Nazwa projektu: | C64: Aktywna integracja w Radzyniu Chełmińskim
B65: Razem wydatki: | C65: Europejski Fundusz Społeczny | E65: =SUM(E66:E68) -> 183393 | F65: =SUM(F66:F68) -> 27509 | G65: =SUM(G66:G68) -> 155884 | H65: =SUM(H66:H68) -> 183393 | I65: =SUM(I66:I68) -> 27509 | J65: - | K65: - | L65: =SUM(L66:L68) -> 27542 | M65: =SUM(M66:M68) -> 155884 | N65: - | O65: - | P65: - | Q65: =SUM(Q66:Q68) -> 155884
B66: z tego: 2011 r. | D66: 853/85395/2007 | E66: 155884 | F66: - | G66: 155884 | H66: 155884 | I66: - | J66: - | K66: - | L66: - | M66: 155884 | N66: - | O66: - | P66: - | Q66: 155884
D67: 853/85395/2009 | E67: 8252 | F67: 8252 | G67: - | H67: 8252 | I67: 8252 | J67: - | K67: - | L67: 8285 | M67: - | N67: - | O67: - | P67: - | Q67: -
D68: 852/85214/3119 | E68: 19257 | F68: 19257 | G68: - | H68: 19257 | I68: 19257 | J68: - | K68: - | L68: 19257 | M68: - | N68: - | O68: - | P68: - | Q68: -
Q72: str. 3
A74: 1 | B74: 2 | C74: 3 | D74: 4 | E74: 5 | F74: 6 | G74: 7 | H74: 8 | I74: 9 | J74: 10 | K74: 11 | L74: 12 | M74: 13 | N74: 14 | O74: 15 | P74: 16 | Q74: 17
A75: 5. | B75: Wydatki bieżące razem: | C75: x | E75: 53673 | F75: 0 | G75: 53673 | H75: 53673 | I75: 0 | J75: =SUM(J80) -> 0 | K75: 0 | L75: 0 | M75: 53673 | N75: 0 | O75: 0 | P75: 0 | Q75: 53673
A76: 5.1 | B76: Program: | C76: "Uczenie się przez całe życie"
B77: Priorytet: | C77: Partnerskie Projekty Szkół
B78: Działanie: | C78: Wielostronne projekty w programie Comenius
B79: Nazwa projektu: | C79: Common Future European Culture
B80: Razem wydatki: | C80: Fundacja Rozwoju Systemu Edukacji | E80: =SUM(E81:E82) -> 53673 | F80: =SUM(F81:F82) -> 0 | G80: =SUM(G81:G82) -> 53673 | H80: =SUM(H81:H82) -> 53673 | I80: =SUM(I81:I82) -> 0 | J80: 0 | K80: 0 | L80: =SUM(L81:L82) -> 0 | M80: =SUM(M81:M82) -> 53673 | N80: - | O80: - | P80: - | Q80: =SUM(Q81:Q82) -> 53673
B81: z tego: 2011 r. | D81: 801/80101/4301,4421,4431 | E81: 33960 | F81: 0 | G81: 33960 | H81: 33960 | I81: 0 | J81: 0 | K81: 0 | L81: 0 | M81: 33960 | N81: - | O81: - | P81: - | Q81: 33960
B82: z tego: 2012 r. | D82: 801/80101/4301,4421,4431 | E82: 19713 | F82: 0 | G82: 19713 | H82: 19713 | I82: 0 | J82: 0 | K82: 0 | L82: 0 | M82: 19713 | N82: - | O82: - | P82: - | Q82: 19713
A83: OGÓŁEM: | C83: 2011 r. | D83: x | E83: =SUM(E16,E25,E44,E52,E60,E81,) -> 2057621 | F83: 576800 | G83: 1480821 | H83: 2047621 | I83: 576800 | J83: 445000 | K83: 0 | L83: 131833 | M83: 1480821 | N83: 630000 | O83: 0 | P83: 0 | Q83: 850821
C85: 2012 r. | D85: x | E85: =SUM(E82) -> 19713 | F85: =SUM(F82) -> 0 | G85: 19713 | H85: 19713 | I85: 0 | J85: 0 | K85: 0 | L85: 0 | M85: 19713 | N85: 0 | O85: 0 | P85: 0 | Q85: 19713
